[Event "Early-Titled-Tuesday-Blitz-February-13-2024"]
[Site "Chess.com"]
[Date "2024.02.13"]
[Round "5"]
[White "Licancabur"]
[Black "JeFumeDesClopes"]
[Result "0-1"]
[WhiteElo "2437"]
[BlackElo "2588"]
[TimeControl "180+1"]
[EndTime "8:59:21 PST"]
[Termination "JeFumeDesClopes won on time"]

1. d4 {[%clk 0:02:59.4]} 1... Nf6 {[%clk 0:03:00]} 2. Bg5 {[%clk 0:02:58.9]}
2... Nc6 {[%clk 0:02:50.8]} 3. Bxf6 {[%clk 0:02:51.6]} 3... gxf6 {[%clk
0:02:47.8]} 4. g3 {[%clk 0:02:30.2]} 4... e5 {[%clk 0:02:45.1]} 5. e3 {[%clk
0:02:19.5]} 5... d5 {[%clk 0:02:39.5]} 6. Bg2 {[%clk 0:02:17.4]} 6... Be6 {[%clk
0:02:33.4]} 7. Ne2 {[%clk 0:02:13.1]} 7... h5 {[%clk 0:02:30.8]} 8. Nbc3 {[%clk
0:02:03.9]} 8... Ne7 {[%clk 0:02:11.4]} 9. h4 {[%clk 0:01:51.7]} 9... Qd7 {[%clk
0:02:11]} 10. Qd2 {[%clk 0:01:46.5]} 10... O-O-O {[%clk 0:02:07.3]} 11. O-O-O
{[%clk 0:01:46.1]} 11... Bh6 {[%clk 0:02:05.1]} 12. Kb1 {[%clk 0:01:44.5]} 12...
Kb8 {[%clk 0:02:00.1]} 13. Nc1 {[%clk 0:01:31.1]} 13... Nf5 {[%clk 0:01:45.3]}
14. Nb3 {[%clk 0:01:29.9]} 14... Nd6 {[%clk 0:01:28.3]} 15. Nc5 {[%clk
0:01:21.5]} 15... Qc6 {[%clk 0:01:27.4]} 16. Bf1 {[%clk 0:01:00.7]} 16... exd4
{[%clk 0:01:05.9]} 17. Qxd4 {[%clk 0:00:57.9]} 17... Nf5 {[%clk 0:01:04.7]} 18.
Qb4 {[%clk 0:00:53.7]} 18... Bf8 {[%clk 0:01:00.3]} 19. N3a4 {[%clk 0:00:34.3]}
19... b6 {[%clk 0:00:55.2]} 20. Na6+ {[%clk 0:00:26.8]} 20... Kb7 {[%clk
0:00:55.3]} 21. Qb3 {[%clk 0:00:09.3]} 21... d4 {[%clk 0:00:47.8]} 22. Qd3
{[%clk 0:00:06.5]} 22... Qxa4 {[%clk 0:00:31.7]} 23. Bg2+ {[%clk 0:00:06.4]}
23... c6 {[%clk 0:00:32]} 24. e4 {[%clk 0:00:01.1]} 24... Qxa2+ {[%clk
0:00:28.4]} 0-1

[Event "Early-Titled-Tuesday-Blitz-February-13-2024"]
[Site "Chess.com"]
[Date "2024.02.13"]
[Round "5"]
[White "Viktor_Poddubnyi"]
[Black "lluiss"]
[Result "0-1"]
[WhiteElo "2263"]
[BlackElo "2152"]
[TimeControl "180+1"]
[EndTime "8:59:25 PST"]
[Termination "lluiss won on time"]

1. e4 {[%clk 0:03:00.9]} 1... e6 {[%clk 0:02:57.4]} 2. d4 {[%clk 0:03:00.4]}
2... d5 {[%clk 0:02:51.9]} 3. Nd2 {[%clk 0:03:00.6]} 3... Nf6 {[%clk 0:02:51.5]}
4. e5 {[%clk 0:03:00.4]} 4... Nfd7 {[%clk 0:02:51.6]} 5. Bd3 {[%clk 0:03:01]}
5... Be7 {[%clk 0:02:50.9]} 6. Ngf3 {[%clk 0:02:54.9]} 6... b6 {[%clk
0:02:50.5]} 7. O-O {[%clk 0:02:52.5]} 7... Ba6 {[%clk 0:02:50]} 8. Ne1 {[%clk
0:02:46.3]} 8... Bxd3 {[%clk 0:02:48.3]} 9. Nxd3 {[%clk 0:02:46.6]} 9... O-O
{[%clk 0:02:47.5]} 10. Nf4 {[%clk 0:02:37]} 10... c5 {[%clk 0:02:36.3]} 11. c3
{[%clk 0:02:37.3]} 11... Nc6 {[%clk 0:02:34.7]} 12. Qg4 {[%clk 0:01:58]} 12...
cxd4 {[%clk 0:01:58.9]} 13. Nh5 {[%clk 0:01:54.2]} 13... g6 {[%clk 0:01:56.1]}
14. cxd4 {[%clk 0:01:53.4]} 14... Kh8 {[%clk 0:01:54.4]} 15. Ng3 {[%clk
0:01:44.5]} 15... f5 {[%clk 0:01:37.3]} 16. exf6 {[%clk 0:01:32.6]} 16... Nxf6
{[%clk 0:01:37.3]} 17. Qxe6 {[%clk 0:01:00.1]} 17... Nxd4 {[%clk 0:01:36.8]} 18.
Qe5 {[%clk 0:00:57.2]} 18... Nc6 {[%clk 0:01:32.4]} 19. Qe2 {[%clk 0:00:48.9]}
19... Qd7 {[%clk 0:01:21.3]} 20. Nf3 {[%clk 0:00:46.2]} 20... Rfe8 {[%clk
0:01:19.8]} 21. Rd1 {[%clk 0:00:20.2]} 21... Bc5 {[%clk 0:01:13.2]} 22. Qd3
{[%clk 0:00:13.9]} 22... Ng4 {[%clk 0:01:02.7]} 23. Nh1 {[%clk 0:00:11.9]} 23...
Nb4 {[%clk 0:00:42.4]} 24. Qc3+ {[%clk 0:00:11.5]} 24... Kg8 {[%clk 0:00:42.2]}
25. a3 {[%clk 0:00:11]} 25... Nc6 {[%clk 0:00:35.2]} 26. b4 {[%clk 0:00:11.3]}
26... Bf8 {[%clk 0:00:32.5]} 27. Bb2 {[%clk 0:00:11.4]} 27... d4 {[%clk
0:00:30.2]} 28. Nxd4 {[%clk 0:00:09.1]} 28... Bg7 {[%clk 0:00:28.3]} 0-1

[Event "Early-Titled-Tuesday-Blitz-February-13-2024"]
[Site "Chess.com"]
[Date "2024.02.13"]
[Round "5"]
[White "ccccvhhhj"]
[Black "vladgoncharov"]
[Result "0-1"]
[WhiteElo "2486"]
[BlackElo "2628"]
[TimeControl "180+1"]
[EndTime "8:59:29 PST"]
[Termination "vladgoncharov won on time"]

1. e4 {[%clk 0:02:50]} 1... e6 {[%clk 0:02:59]} 2. Nf3 {[%clk 0:02:50.2]} 2...
d5 {[%clk 0:02:58.5]} 3. e5 {[%clk 0:02:50.9]} 3... c5 {[%clk 0:02:58.2]} 4. b4
{[%clk 0:02:51.7]} 4... cxb4 {[%clk 0:02:58.4]} 5. a3 {[%clk 0:02:52.5]} 5... b3
{[%clk 0:02:58.8]} 6. cxb3 {[%clk 0:02:52.7]} 6... Nc6 {[%clk 0:02:58.6]} 7. d4
{[%clk 0:02:53.3]} 7... Nge7 {[%clk 0:02:58.1]} 8. Bd3 {[%clk 0:02:53.8]} 8...
Nf5 {[%clk 0:02:58.1]} 9. Bc2 {[%clk 0:02:44.3]} 9... Nh4 {[%clk 0:02:53.6]} 10.
Nxh4 {[%clk 0:02:31.7]} 10... Qxh4 {[%clk 0:02:52.5]} 11. Be3 {[%clk 0:02:32.6]}
11... Bd7 {[%clk 0:02:42.6]} 12. O-O {[%clk 0:02:32.1]} 12... Qd8 {[%clk
0:02:40]} 13. f4 {[%clk 0:02:26.2]} 13... g6 {[%clk 0:02:39.3]} 14. Nc3 {[%clk
0:02:22]} 14... Rc8 {[%clk 0:02:37.1]} 15. Nb5 {[%clk 0:02:08.1]} 15... Qb6
{[%clk 0:02:05.2]} 16. Nd6+ {[%clk 0:02:07.9]} 16... Bxd6 {[%clk 0:02:04.8]} 17.
exd6 {[%clk 0:02:08.8]} 17... f5 {[%clk 0:02:02.8]} 18. b4 {[%clk 0:02:01.1]}
18... Nd8 {[%clk 0:02:02.2]} 19. Bf2 {[%clk 0:01:57.5]} 19... Qxd6 {[%clk
0:02:00]} 20. Bh4 {[%clk 0:01:55.8]} 20... O-O {[%clk 0:01:59.5]} 21. Qe2 {[%clk
0:01:24.2]} 21... a6 {[%clk 0:01:58.6]} 22. Rae1 {[%clk 0:01:10.5]} 22... Bb5
{[%clk 0:01:57.9]} 23. Bd3 {[%clk 0:01:11.1]} 23... Bxd3 {[%clk 0:01:57.4]} 24.
Qxd3 {[%clk 0:01:12]} 24... Rc4 {[%clk 0:01:42.6]} 25. Re2 {[%clk 0:00:56.5]}
25... Nc6 {[%clk 0:01:26.2]} 26. Rfe1 {[%clk 0:00:44.3]} 26... Rxd4 {[%clk
0:01:22.9]} 27. Qg3 {[%clk 0:00:30.3]} 27... Re4 {[%clk 0:01:20.7]} 28. Bg5
{[%clk 0:00:26.6]} 28... Nd4 {[%clk 0:01:15.1]} 29. Rxe4 {[%clk 0:00:20.8]}
29... fxe4 {[%clk 0:01:14.6]} 30. h4 {[%clk 0:00:21.7]} 30... Nf5 {[%clk
0:01:10]} 31. Qg4 {[%clk 0:00:22]} 31... Qb6+ {[%clk 0:01:08.4]} 32. Kh2 {[%clk
0:00:21.8]} 32... h5 {[%clk 0:00:59.4]} 33. Qe2 {[%clk 0:00:18.7]} 33... Rc8
{[%clk 0:00:58.5]} 34. Qb2 {[%clk 0:00:18.5]} 34... Qd4 {[%clk 0:00:55]} 35. Qb1
{[%clk 0:00:15.6]} 35... Qd3 {[%clk 0:00:54]} 36. Qb2 {[%clk 0:00:15.4]} 36...
Rc2 {[%clk 0:00:49.3]} 37. Qf6 {[%clk 0:00:13.7]} 37... Qg3+ {[%clk 0:00:48.9]}
0-1

[Event "Early-Titled-Tuesday-Blitz-February-13-2024"]
[Site "Chess.com"]
[Date "2024.02.13"]
[Round "5"]
[White "Helenita13"]
[Black "Balla_Tamas"]
[Result "0-1"]
[WhiteElo "2126"]
[BlackElo "2395"]
[TimeControl "180+1"]
[EndTime "8:59:31 PST"]
[Termination "Balla_Tamas won by resignation"]

1. b3 {[%clk 0:02:58.4]} 1... c5 {[%clk 0:02:59.9]} 2. Bb2 {[%clk 0:02:59.3]}
2... d5 {[%clk 0:03:00.4]} 3. e3 {[%clk 0:03:00.2]} 3... a6 {[%clk 0:03:00.9]}
4. Nf3 {[%clk 0:03:01.1]} 4... Nc6 {[%clk 0:03:01.4]} 5. c4 {[%clk 0:03:01.6]}
5... d4 {[%clk 0:03:00.1]} 6. exd4 {[%clk 0:03:02.5]} 6... cxd4 {[%clk 0:03:01]}
7. d3 {[%clk 0:03:03.1]} 7... Nf6 {[%clk 0:02:59.4]} 8. h3 {[%clk 0:03:03]} 8...
Bf5 {[%clk 0:02:58.8]} 9. Be2 {[%clk 0:03:03.9]} 9... e5 {[%clk 0:02:49.1]} 10.
O-O {[%clk 0:03:03.8]} 10... Bd6 {[%clk 0:02:49.1]} 11. Re1 {[%clk 0:03:01.6]}
11... O-O {[%clk 0:02:48.7]} 12. Bf1 {[%clk 0:03:02.1]} 12... Re8 {[%clk
0:02:44.6]} 13. Nbd2 {[%clk 0:03:01.6]} 13... Rc8 {[%clk 0:02:39.4]} 14. a3
{[%clk 0:02:59.7]} 14... b5 {[%clk 0:02:36.8]} 15. Rc1 {[%clk 0:02:48]} 15...
bxc4 {[%clk 0:02:35.7]} 16. Nxc4 {[%clk 0:02:48.7]} 16... h6 {[%clk 0:02:34.2]}
17. Rc2 {[%clk 0:02:36]} 17... Nd5 {[%clk 0:02:27.4]} 18. Nfd2 {[%clk
0:02:14.2]} 18... Nf4 {[%clk 0:02:20.8]} 19. Ne4 {[%clk 0:02:12.9]} 19... Bb8
{[%clk 0:02:17.9]} 20. Bc1 {[%clk 0:02:08.7]} 20... Bxe4 {[%clk 0:01:59.9]} 21.
Rxe4 {[%clk 0:01:57.1]} 21... Qg5 {[%clk 0:01:51.2]} 22. Bxf4 {[%clk 0:01:50.4]}
22... exf4 {[%clk 0:01:44.1]} 23. Qf3 {[%clk 0:01:38.1]} 23... Ne5 {[%clk
0:01:35.9]} 24. Rxe5 {[%clk 0:00:27.1]} 24... Bxe5 {[%clk 0:01:33.7]} 25. Qb7
{[%clk 0:00:19.9]} 25... Bf6 {[%clk 0:01:28.9]} 26. Re2 {[%clk 0:00:16.3]} 26...
Rcd8 {[%clk 0:01:19.6]} 27. Qc6 {[%clk 0:00:14.5]} 27... Rxe2 {[%clk 0:01:17.4]}
28. Bxe2 {[%clk 0:00:15.4]} 28... Qb5 {[%clk 0:01:11.2]} 29. Qxb5 {[%clk
0:00:10.1]} 29... axb5 {[%clk 0:01:12.1]} 30. Na5 {[%clk 0:00:09]} 30... Rc8
{[%clk 0:01:10.4]} 31. Bf3 {[%clk 0:00:05.8]} 31... Rc1+ {[%clk 0:01:08.4]} 32.
Kh2 {[%clk 0:00:05.7]} 32... Rc3 {[%clk 0:01:08.5]} 33. Be4 {[%clk 0:00:05.4]}
33... Be5 {[%clk 0:01:08.5]} 34. g3 {[%clk 0:00:03.8]} 34... fxg3+ {[%clk
0:01:08.1]} 35. fxg3 {[%clk 0:00:04.7]} 35... Rc2+ {[%clk 0:01:08.7]} 36. Kg1
{[%clk 0:00:04.1]} 36... Bxg3 {[%clk 0:01:09.2]} 37. Nc6 {[%clk 0:00:04.2]}
37... Bf2+ {[%clk 0:01:08.6]} 38. Kg2 {[%clk 0:00:04.3]} 38... Be3+ {[%clk
0:01:08.9]} 39. Kf3 {[%clk 0:00:04.9]} 39... Ra2 {[%clk 0:01:08]} 40. a4 {[%clk
0:00:03.9]} 40... bxa4 {[%clk 0:01:07.9]} 41. bxa4 {[%clk 0:00:04.8]} 41... Rxa4
{[%clk 0:01:08.7]} 42. Ne5 {[%clk 0:00:03.9]} 42... Ra2 {[%clk 0:01:08.3]} 43.
Bd5 {[%clk 0:00:03.7]} 43... Rf2+ {[%clk 0:01:08.1]} 44. Kg3 {[%clk 0:00:04.4]}
44... Rf5 {[%clk 0:01:05.8]} 45. Nxf7 {[%clk 0:00:02.2]} 45... Rxf7 {[%clk
0:01:06.2]} 46. Bxf7+ {[%clk 0:00:01.4]} 46... Kxf7 {[%clk 0:01:07.1]} 47. h4
{[%clk 0:00:02.3]} 47... Kf6 {[%clk 0:01:07.4]} 48. h5 {[%clk 0:00:03.2]} 48...
Kg5 {[%clk 0:01:07.8]} 0-1

[Event "Early-Titled-Tuesday-Blitz-February-13-2024"]
[Site "Chess.com"]
[Date "2024.02.13"]
[Round "5"]
[White "Crazy_girl99"]
[Black "tusplingher"]
[Result "0-1"]
[WhiteElo "2588"]
[BlackElo "2470"]
[TimeControl "180+1"]
[EndTime "8:59:33 PST"]
[Termination "tusplingher won by resignation"]

1. e4 {[%clk 0:03:00.9]} 1... c5 {[%clk 0:02:59.6]} 2. Nf3 {[%clk 0:02:54]} 2...
d6 {[%clk 0:02:59.4]} 3. d4 {[%clk 0:02:52.6]} 3... cxd4 {[%clk 0:02:59.6]} 4.
Nxd4 {[%clk 0:02:53.5]} 4... Nf6 {[%clk 0:03:00.2]} 5. Nc3 {[%clk 0:02:53.9]}
5... a6 {[%clk 0:03:00.8]} 6. Be3 {[%clk 0:02:49.5]} 6... Ng4 {[%clk 0:02:58.8]}
7. Bg5 {[%clk 0:02:47]} 7... h6 {[%clk 0:02:57.8]} 8. Bh4 {[%clk 0:02:47.3]}
8... g5 {[%clk 0:02:57.6]} 9. Bg3 {[%clk 0:02:47.7]} 9... Bg7 {[%clk 0:02:58.3]}
10. Be2 {[%clk 0:02:47.7]} 10... h5 {[%clk 0:02:56.8]} 11. h4 {[%clk 0:02:47.3]}
11... Nc6 {[%clk 0:02:42.7]} 12. Nb3 {[%clk 0:02:36.7]} 12... gxh4 {[%clk
0:02:34.7]} 13. Bxh4 {[%clk 0:02:26.8]} 13... Be6 {[%clk 0:02:28.7]} 14. Qd2
{[%clk 0:02:21.4]} 14... Qb6 {[%clk 0:02:21.4]} 15. Nd5 {[%clk 0:02:03.4]} 15...
Bxd5 {[%clk 0:02:18.7]} 16. exd5 {[%clk 0:01:44.2]} 16... Nce5 {[%clk
0:02:12.7]} 17. O-O-O {[%clk 0:01:37.1]} 17... Bh6 {[%clk 0:01:44.6]} 18. f4
{[%clk 0:01:28.4]} 18... Ng6 {[%clk 0:01:40.8]} 19. Bxg4 {[%clk 0:01:10.3]}
19... Bxf4 {[%clk 0:01:33.3]} 20. Qxf4 {[%clk 0:00:53.3]} 20... Nxf4 {[%clk
0:01:33.4]} 21. Bf3 {[%clk 0:00:53.8]} 21... Ng6 {[%clk 0:01:28.9]} 22. Bg5
{[%clk 0:00:50]} 22... Rc8 {[%clk 0:01:17.1]} 23. Kb1 {[%clk 0:00:48.1]} 23...
Qf2 {[%clk 0:01:10]} 24. Nd4 {[%clk 0:00:41.6]} 24... Qg3 {[%clk 0:00:53.9]} 25.
Bc1 {[%clk 0:00:28.4]} 25... Ne5 {[%clk 0:00:50.2]} 26. Bxh5 {[%clk 0:00:20.3]}
26... Qxg2 {[%clk 0:00:29.3]} 27. Bf3 {[%clk 0:00:16.6]} 27... Rxh1 {[%clk
0:00:25.7]} 28. Rxh1 {[%clk 0:00:12.4]} 28... Nxf3 {[%clk 0:00:25.8]} 29. Rh8+
{[%clk 0:00:12.6]} 29... Kd7 {[%clk 0:00:26]} 30. Rxc8 {[%clk 0:00:12.7]} 30...
Kxc8 {[%clk 0:00:26]} 31. Nf5 {[%clk 0:00:12.1]} 31... Qf1 {[%clk 0:00:20.9]}
32. Ne3 {[%clk 0:00:08.8]} 32... Nd2+ {[%clk 0:00:19.7]} 0-1

[Event "Early-Titled-Tuesday-Blitz-February-13-2024"]
[Site "Chess.com"]
[Date "2024.02.13"]
[Round "5"]
[White "Rud_Makarian"]
[Black "blitzking1729"]
[Result "1-0"]
[WhiteElo "3031"]
[BlackElo "2716"]
[TimeControl "180+1"]
[EndTime "8:59:35 PST"]
[Termination "Rud_Makarian won by resignation"]

1. Nf3 {[%clk 0:03:00.1]} 1... d5 {[%clk 0:02:58.2]} 2. c4 {[%clk 0:02:58.8]}
2... d4 {[%clk 0:02:58.2]} 3. g3 {[%clk 0:02:59.3]} 3... g6 {[%clk 0:02:55.9]}
4. Bg2 {[%clk 0:03:00.2]} 4... Bg7 {[%clk 0:02:56.4]} 5. b4 {[%clk 0:03:00.5]}
5... a5 {[%clk 0:02:55.5]} 6. b5 {[%clk 0:03:00.3]} 6... c5 {[%clk 0:02:51.6]}
7. O-O {[%clk 0:02:58.6]} 7... Nh6 {[%clk 0:02:51.1]} 8. d3 {[%clk 0:02:57.9]}
8... O-O {[%clk 0:02:48.4]} 9. a4 {[%clk 0:02:56.5]} 9... Nd7 {[%clk 0:02:47.8]}
10. Ra2 {[%clk 0:02:56.2]} 10... Rb8 {[%clk 0:02:46.3]} 11. e3 {[%clk
0:02:55.9]} 11... Nf5 {[%clk 0:02:41.9]} 12. e4 {[%clk 0:02:55]} 12... Nd6
{[%clk 0:02:41.7]} 13. Re2 {[%clk 0:02:49.2]} 13... e5 {[%clk 0:02:41.7]} 14. h4
{[%clk 0:02:48.2]} 14... Nb6 {[%clk 0:02:18.5]} 15. Bd2 {[%clk 0:02:45.5]} 15...
Bg4 {[%clk 0:02:16.4]} 16. Bxa5 {[%clk 0:02:43.4]} 16... Ra8 {[%clk 0:02:12.5]}
17. Bxb6 {[%clk 0:02:43.1]} 17... Qxb6 {[%clk 0:02:13.4]} 18. Nbd2 {[%clk
0:02:40.8]} 18... f5 {[%clk 0:02:05.6]} 19. exf5 {[%clk 0:02:34.7]} 19... Rxf5
{[%clk 0:02:01.8]} 20. Ng5 {[%clk 0:02:18]} 20... Bxe2 {[%clk 0:01:58.7]} 21.
Qxe2 {[%clk 0:02:18.9]} 21... Rxa4 {[%clk 0:01:52.4]} 22. Nde4 {[%clk
0:02:15.5]} 22... Ne8 {[%clk 0:01:36.8]} 23. Bh3 {[%clk 0:02:12.2]} 23... h6
{[%clk 0:01:30.3]} 24. Bxf5 {[%clk 0:02:07.5]} 24... gxf5 {[%clk 0:01:29.6]} 25.
Qh5 {[%clk 0:02:07.8]} 25... Ra8 {[%clk 0:00:49.8]} 26. Qf7+ {[%clk 0:02:05.2]}
26... Kh8 {[%clk 0:00:49.6]} 27. Qxf5 {[%clk 0:02:01.9]} 27... hxg5 {[%clk
0:00:49.4]} 28. hxg5 {[%clk 0:02:02.5]} 28... Kg8 {[%clk 0:00:30.6]} 29. Kg2
{[%clk 0:01:55]} 29... Nc7 {[%clk 0:00:21.7]} 30. Nf6+ {[%clk 0:01:13.8]} 30...
Bxf6 {[%clk 0:00:17.9]} 31. gxf6 {[%clk 0:01:13.5]} 31... Kf7 {[%clk 0:00:03.4]}
32. Rh1 {[%clk 0:01:01.9]} 32... Rg8 {[%clk 0:00:01.3]} 33. Rh7+ {[%clk
0:00:57.9]} 33... Kf8 {[%clk 0:00:01.9]} 34. Qc8+ {[%clk 0:00:55.6]} 34... Ne8
{[%clk 0:00:02.5]} 35. f7 {[%clk 0:00:55]} 35... Rxg3+ {[%clk 0:00:02.5]} 36.
fxg3 {[%clk 0:00:49.3]} 1-0

[Event "Early-Titled-Tuesday-Blitz-February-13-2024"]
[Site "Chess.com"]
[Date "2024.02.13"]
[Round "5"]
[White "sewlins"]
[Black "AndresDelgado77"]
[Result "0-1"]
[WhiteElo "2113"]
[BlackElo "2362"]
[TimeControl "180+1"]
[EndTime "8:59:35 PST"]
[Termination "AndresDelgado77 won on time"]

1. Nf3 {[%clk 0:02:58.8]} 1... Nf6 {[%clk 0:02:58.7]} 2. c4 {[%clk 0:02:58.2]}
2... g6 {[%clk 0:02:52.6]} 3. Nc3 {[%clk 0:02:56.7]} 3... Bg7 {[%clk 0:02:51]}
4. g3 {[%clk 0:02:56.8]} 4... d6 {[%clk 0:02:50.2]} 5. Bg2 {[%clk 0:02:56.5]}
5... O-O {[%clk 0:02:43.1]} 6. O-O {[%clk 0:02:56.6]} 6... c6 {[%clk 0:02:38.7]}
7. d4 {[%clk 0:02:45.2]} 7... Qb6 {[%clk 0:02:31.9]} 8. e4 {[%clk 0:02:32.2]}
8... Bg4 {[%clk 0:02:31]} 9. h3 {[%clk 0:02:24.3]} 9... Bxf3 {[%clk 0:02:30.8]}
10. Bxf3 {[%clk 0:02:25.2]} 10... Nfd7 {[%clk 0:02:27.2]} 11. Ne2 {[%clk
0:02:10.7]} 11... c5 {[%clk 0:02:17.3]} 12. Be3 {[%clk 0:01:54.1]} 12... Qxb2
{[%clk 0:02:09.5]} 13. Rb1 {[%clk 0:01:53.1]} 13... Qxa2 {[%clk 0:02:09.6]} 14.
Rxb7 {[%clk 0:01:52.7]} 14... Qxc4 {[%clk 0:01:59.7]} 15. e5 {[%clk 0:01:48.1]}
15... cxd4 {[%clk 0:01:49.4]} 16. Bxd4 {[%clk 0:01:20.1]} 16... dxe5 {[%clk
0:01:29.8]} 17. Bxa7 {[%clk 0:01:17.4]} 17... e4 {[%clk 0:01:21.1]} 18. Bg2
{[%clk 0:01:16.9]} 18... Qa6 {[%clk 0:00:55.4]} 19. Rxb8 {[%clk 0:00:16.4]}
19... Nxb8 {[%clk 0:00:52.1]} 20. Bxb8 {[%clk 0:00:17.3]} 20... Raxb8 {[%clk
0:00:51.2]} 21. Bxe4 {[%clk 0:00:18.2]} 21... Rfd8 {[%clk 0:00:50.1]} 22. Qe1
{[%clk 0:00:11.2]} 22... Rb2 {[%clk 0:00:39.8]} 23. Nf4 {[%clk 0:00:11.2]} 23...
Qc4 {[%clk 0:00:23.7]} 24. Kh1 {[%clk 0:00:05.9]} 24... Bc3 {[%clk 0:00:20.6]}
25. Qa1 {[%clk 0:00:02.1]} 25... Qxe4+ {[%clk 0:00:18.7]} 0-1

[Event "Early-Titled-Tuesday-Blitz-February-13-2024"]
[Site "Chess.com"]
[Date "2024.02.13"]
[Round "5"]
[White "KorolDimitriy75"]
[Black "Dewarfd"]
[Result "1-0"]
[WhiteElo "2399"]
[BlackElo "2156"]
[TimeControl "180+1"]
[EndTime "8:59:36 PST"]
[Termination "KorolDimitriy75 won on time"]

1. d4 {[%clk 0:03:00.9]} 1... Nf6 {[%clk 0:02:57.5]} 2. c4 {[%clk 0:03:00.9]}
2... g6 {[%clk 0:02:57.6]} 3. Nc3 {[%clk 0:03:01.4]} 3... d5 {[%clk 0:02:57.7]}
4. cxd5 {[%clk 0:03:01.5]} 4... Nxd5 {[%clk 0:02:58.6]} 5. e4 {[%clk 0:03:02.1]}
5... Nxc3 {[%clk 0:02:59]} 6. bxc3 {[%clk 0:03:03]} 6... Bg7 {[%clk 0:02:59.4]}
7. Nf3 {[%clk 0:03:03.6]} 7... c5 {[%clk 0:02:59.7]} 8. Rb1 {[%clk 0:03:04]}
8... O-O {[%clk 0:02:56.9]} 9. Be2 {[%clk 0:03:03.8]} 9... Nc6 {[%clk
0:02:56.5]} 10. d5 {[%clk 0:03:03.8]} 10... Bxc3+ {[%clk 0:02:54.7]} 11. Bd2
{[%clk 0:03:03.8]} 11... Bxd2+ {[%clk 0:02:53.3]} 12. Qxd2 {[%clk 0:03:04.7]}
12... Nd4 {[%clk 0:02:36.9]} 13. Nxd4 {[%clk 0:03:04.3]} 13... cxd4 {[%clk
0:02:37.8]} 14. Qxd4 {[%clk 0:03:04.9]} 14... Qa5+ {[%clk 0:02:35.6]} 15. Qd2
{[%clk 0:03:05]} 15... Qxd2+ {[%clk 0:02:34.1]} 16. Kxd2 {[%clk 0:03:05.9]}
16... f5 {[%clk 0:02:18.7]} 17. Rhc1 {[%clk 0:02:06.6]} 17... fxe4 {[%clk
0:02:14.3]} 18. Ke3 {[%clk 0:02:06.7]} 18... Rf6 {[%clk 0:01:16.6]} 19. Rc7
{[%clk 0:01:57]} 19... Rd6 {[%clk 0:00:40.7]} 20. Rxe7 {[%clk 0:01:13]} 20...
Kf8 {[%clk 0:00:35.8]} 21. Rxh7 {[%clk 0:01:12.6]} 21... Rxd5 {[%clk 0:00:34.5]}
22. Rc1 {[%clk 0:01:07.8]} 22... Be6 {[%clk 0:00:17.5]} 23. Rxb7 {[%clk
0:00:47]} 23... Ra5 {[%clk 0:00:09]} 24. Rc6 {[%clk 0:00:20.6]} 24... Ra3+
{[%clk 0:00:04]} 25. Kf4 {[%clk 0:00:19]} 25... Re8 {[%clk 0:00:02.2]} 26. Bb5
{[%clk 0:00:15.4]} 1-0

[Event "Early-Titled-Tuesday-Blitz-February-13-2024"]
[Site "Chess.com"]
[Date "2024.02.13"]
[Round "5"]
[White "SimonKnightRivendell"]
[Black "rachidhuilda"]
[Result "0-1"]
[WhiteElo "2083"]
[BlackElo "2314"]
[TimeControl "180+1"]
[EndTime "8:59:37 PST"]
[Termination "rachidhuilda won on time"]

1. d4 {[%clk 0:03:00.9]} 1... Nf6 {[%clk 0:02:46.1]} 2. c4 {[%clk 0:03:00.3]}
2... c5 {[%clk 0:02:45.7]} 3. Nf3 {[%clk 0:02:58.3]} 3... cxd4 {[%clk
0:02:45.4]} 4. Nxd4 {[%clk 0:02:58.1]} 4... e5 {[%clk 0:02:46.1]} 5. Nf3 {[%clk
0:02:58]} 5... Nc6 {[%clk 0:02:40.8]} 6. g3 {[%clk 0:02:57.8]} 6... d5 {[%clk
0:02:37.7]} 7. cxd5 {[%clk 0:02:56.2]} 7... Qxd5 {[%clk 0:02:37.6]} 8. Qxd5
{[%clk 0:02:50.6]} 8... Nxd5 {[%clk 0:02:38.5]} 9. Bg2 {[%clk 0:02:49.6]} 9...
Nb6 {[%clk 0:02:30.3]} 10. O-O {[%clk 0:02:45.3]} 10... Be7 {[%clk 0:02:29.4]}
11. Nc3 {[%clk 0:02:43.4]} 11... Be6 {[%clk 0:02:27]} 12. Rd1 {[%clk 0:02:23.8]}
12... O-O {[%clk 0:02:17.7]} 13. Nb5 {[%clk 0:02:23.3]} 13... Rfd8 {[%clk
0:02:05.7]} 14. Be3 {[%clk 0:02:06.3]} 14... Nc4 {[%clk 0:01:52.5]} 15. Bd2
{[%clk 0:01:45.8]} 15... e4 {[%clk 0:01:35.8]} 16. Ng5 {[%clk 0:01:41.1]} 16...
Rxd2 {[%clk 0:01:33.4]} 17. Nxe6 {[%clk 0:01:34.8]} 17... fxe6 {[%clk 0:01:17]}
18. b3 {[%clk 0:01:33.7]} 18... Rad8 {[%clk 0:01:00.6]} 19. Rxd2 {[%clk
0:01:20.5]} 19... Nxd2 {[%clk 0:00:59.9]} 20. Rc1 {[%clk 0:01:07.7]} 20... Kf7
{[%clk 0:00:43.5]} 21. Nc3 {[%clk 0:01:02.8]} 21... e3 {[%clk 0:00:34.5]} 22.
Ne4 {[%clk 0:00:47.4]} 22... Nxe4 {[%clk 0:00:31.3]} 23. Bxe4 {[%clk 0:00:47.3]}
23... exf2+ {[%clk 0:00:31.4]} 24. Kxf2 {[%clk 0:00:46.8]} 24... Rd2 {[%clk
0:00:31.4]} 25. a4 {[%clk 0:00:37]} 25... Na5 {[%clk 0:00:26.8]} 26. Rc7 {[%clk
0:00:28.1]} 26... Kf6 {[%clk 0:00:23.1]} 27. Ke3 {[%clk 0:00:19.9]} 27... Rb2
{[%clk 0:00:21.6]} 28. Bc2 {[%clk 0:00:18.3]} 28... Bd6 {[%clk 0:00:17.6]} 29.
Rc3 {[%clk 0:00:10.2]} 29... Be5 {[%clk 0:00:16.3]} 0-1